[Event "*** Titled Tuesday Blitz"]
[Site "Chess.com"]
[Date "2021.03.02"]
[Round "5"]
[White "AlexTriapishko"]
[Black "Shuvalov"]
[Result "1-0"]
[WhiteElo "2798"]
[BlackElo "2537"]
[TimeControl "180+1"]
[EndTime "10:55:15 PST"]
[Termination "AlexTriapishko won by resignation"]

1. e4 {[%clk 0:03:00.9]} 1... e6 {[%clk 0:02:59.4]} 2. Nc3 {[%clk 0:03:01.8]}
2... d5 {[%clk 0:02:59.3]} 3. Nf3 {[%clk 0:03:02]} 3... Bb4 {[%clk 0:02:58.1]}
4. Qe2 {[%clk 0:03:01.3]} 4... Ne7 {[%clk 0:02:57]} 5. a3 {[%clk 0:02:39]} 5...
Ba5 {[%clk 0:02:51.1]} 6. b4 {[%clk 0:02:39.1]} 6... Bb6 {[%clk 0:02:51.2]} 7.
Na4 {[%clk 0:02:38]} 7... O-O {[%clk 0:02:46.3]} 8. Bb2 {[%clk 0:02:36.8]} 8...
Bd7 {[%clk 0:02:41.1]} 9. Nxb6 {[%clk 0:02:36.7]} 9... axb6 {[%clk 0:02:40.9]}
10. d3 {[%clk 0:02:32.9]} 10... c5 {[%clk 0:02:36]} 11. g3 {[%clk 0:02:30]}
11... Na6 {[%clk 0:02:08.7]} 12. Bg2 {[%clk 0:02:15.5]} 12... cxb4 {[%clk
0:02:04]} 13. O-O {[%clk 0:02:14.6]} 13... bxa3 {[%clk 0:01:55.2]} 14. Rxa3
{[%clk 0:02:12.6]} 14... Nc5 {[%clk 0:01:52.3]} 15. exd5 {[%clk 0:01:54.2]}
15... Rxa3 {[%clk 0:01:36.6]} 16. Bxa3 {[%clk 0:01:53.6]} 16... exd5 {[%clk
0:01:26.9]} 17. Nd4 {[%clk 0:01:43.8]} 17... Re8 {[%clk 0:01:25.3]} 18. Qd2
{[%clk 0:01:36.7]} 18... Nc6 {[%clk 0:01:20.3]} 19. Bb2 {[%clk 0:01:34.3]} 19...
Nxd4 {[%clk 0:01:17.5]} 20. Bxd4 {[%clk 0:01:35.2]} 20... Ne6 {[%clk 0:01:17.8]}
21. Ba1 {[%clk 0:01:32.9]} 21... Bc6 {[%clk 0:01:15]} 22. f4 {[%clk 0:01:26.8]}
22... d4 {[%clk 0:01:14.5]} 23. f5 {[%clk 0:01:26.7]} 23... Ng5 {[%clk
0:01:07.5]} 24. h4 {[%clk 0:01:23.4]} 24... Re3 {[%clk 0:01:01.8]} 25. hxg5
{[%clk 0:01:17.9]} 25... Rxg3 {[%clk 0:01:00.7]} 26. Rf2 {[%clk 0:01:18.2]}
26... Rxg5 {[%clk 0:00:50.8]} 27. Qf4 {[%clk 0:01:12.9]} 27... h5 {[%clk
0:00:40]} 28. Qxd4 {[%clk 0:01:04.8]} 28... Qe8 {[%clk 0:00:35.6]} 29. Qe5
{[%clk 0:01:03.4]} 29... Qa8 {[%clk 0:00:31.8]} 30. Kh2 {[%clk 0:01:00.7]} 30...
Qa2 {[%clk 0:00:25.2]} 31. Qb2 {[%clk 0:00:36]} 31... Qa4 {[%clk 0:00:22.9]} 32.
Qd4 {[%clk 0:00:35.9]} 32... Qa2 {[%clk 0:00:22]} 33. Qd8+ {[%clk 0:00:34.5]}
33... Kh7 {[%clk 0:00:21.7]} 34. Qxg5 {[%clk 0:00:34.9]} 34... Qxa1 {[%clk
0:00:21.9]} 35. Qxh5+ {[%clk 0:00:33.7]} 35... Kg8 {[%clk 0:00:22.4]} 36. Bxc6
{[%clk 0:00:32.1]} 36... bxc6 {[%clk 0:00:22.3]} 37. f6 {[%clk 0:00:32.7]} 37...
gxf6 {[%clk 0:00:20.2]} 38. Rg2+ {[%clk 0:00:30.4]} 38... Kf8 {[%clk 0:00:20.5]}
39. Qh8+ {[%clk 0:00:31.1]} 39... Ke7 {[%clk 0:00:20.8]} 40. Re2+ {[%clk
0:00:31.7]} 40... Kd6 {[%clk 0:00:19.1]} 41. Qf8+ {[%clk 0:00:29.8]} 41... Kd5
{[%clk 0:00:18.7]} 42. c4+ {[%clk 0:00:27.2]} 42... Kd4 {[%clk 0:00:17.9]} 43.
Qd6+ {[%clk 0:00:27.7]} 43... Kc3 {[%clk 0:00:17.9]} 44. Qxf6+ {[%clk
0:00:28.3]} 44... Kxd3 {[%clk 0:00:17.8]} 45. Qxa1 {[%clk 0:00:28.4]} 45... Kxe2
{[%clk 0:00:18.7]} 46. Qd4 {[%clk 0:00:28.2]} 1-0

[Event "*** Titled Tuesday Blitz"]
[Site "Chess.com"]
[Date "2021.03.02"]
[Round "5"]
[White "lagedema"]
[Black "PavelShkapenko"]
[Result "1-0"]
[WhiteElo "2526"]
[BlackElo "2682"]
[TimeControl "180+1"]
[EndTime "10:55:17 PST"]
[Termination "lagedema won by resignation"]

1. e4 {[%clk 0:03:00.9]} 1... e5 {[%clk 0:02:59.3]} 2. Nf3 {[%clk 0:03:00.3]}
2... Nc6 {[%clk 0:02:58]} 3. Bc4 {[%clk 0:03:00.3]} 3... d6 {[%clk 0:02:56.9]}
4. O-O {[%clk 0:02:58.1]} 4... Be7 {[%clk 0:02:51]} 5. a4 {[%clk 0:02:57]} 5...
Nf6 {[%clk 0:02:44.3]} 6. Re1 {[%clk 0:02:55.1]} 6... O-O {[%clk 0:02:37]} 7. d3
{[%clk 0:02:51.5]} 7... Bg4 {[%clk 0:02:33.8]} 8. a5 {[%clk 0:02:47.6]} 8... a6
{[%clk 0:02:31.7]} 9. h3 {[%clk 0:02:45]} 9... Bxf3 {[%clk 0:02:24.9]} 10. Qxf3
{[%clk 0:02:42.6]} 10... Nd7 {[%clk 0:02:25.2]} 11. c3 {[%clk 0:02:39.4]} 11...
Bg5 {[%clk 0:02:24.8]} 12. Nd2 {[%clk 0:02:36.7]} 12... Nc5 {[%clk 0:02:16.5]}
13. b4 {[%clk 0:02:34.2]} 13... Ne6 {[%clk 0:02:16.1]} 14. g3 {[%clk 0:02:19.9]}
14... Qe7 {[%clk 0:02:09.8]} 15. h4 {[%clk 0:02:12.4]} 15... Bh6 {[%clk
0:02:08.1]} 16. Bd5 {[%clk 0:02:11.5]} 16... Kh8 {[%clk 0:02:06.8]} 17. Qg4
{[%clk 0:02:03.7]} 17... Rae8 {[%clk 0:01:56.2]} 18. Nc4 {[%clk 0:01:55.7]}
18... Bxc1 {[%clk 0:01:54.3]} 19. Raxc1 {[%clk 0:01:56]} 19... Ncd8 {[%clk
0:01:54.3]} 20. Ne3 {[%clk 0:01:51.5]} 20... g6 {[%clk 0:01:52.9]} 21. h5 {[%clk
0:01:44.7]} 21... Qg5 {[%clk 0:01:49.5]} 22. Qxg5 {[%clk 0:01:40.1]} 22... Nxg5
{[%clk 0:01:49.2]} 23. Kg2 {[%clk 0:01:40.3]} 23... Kg7 {[%clk 0:01:48.4]} 24.
Rh1 {[%clk 0:01:35]} 24... Rh8 {[%clk 0:01:46]} 25. f4 {[%clk 0:01:22.4]} 25...
exf4 {[%clk 0:01:39.2]} 26. gxf4 {[%clk 0:01:23.3]} 26... Nge6 {[%clk
0:01:39.7]} 27. Kf3 {[%clk 0:01:22.3]} 27... g5 {[%clk 0:01:19.4]} 28. h6+
{[%clk 0:01:16.3]} 28... Kf8 {[%clk 0:01:19.4]} 29. f5 {[%clk 0:01:15]} 29...
Nf4 {[%clk 0:01:17.2]} 30. Rcd1 {[%clk 0:01:13.4]} 30... f6 {[%clk 0:01:07.7]}
31. Bb3 {[%clk 0:01:00.7]} 31... Nc6 {[%clk 0:01:06.4]} 32. d4 {[%clk
0:00:56.3]} 32... Ke7 {[%clk 0:00:49.2]} 33. Nd5+ {[%clk 0:00:47.6]} 33... Nxd5
{[%clk 0:00:48.2]} 34. exd5 {[%clk 0:00:47.9]} 34... Nd8 {[%clk 0:00:41.4]} 35.
Ba4 {[%clk 0:00:46.9]} 35... Ref8 {[%clk 0:00:39.5]} 36. Rde1+ {[%clk
0:00:46.5]} 36... Kf7 {[%clk 0:00:40]} 37. Kg4 {[%clk 0:00:45.6]} 37... c6
{[%clk 0:00:38.8]} 38. dxc6 {[%clk 0:00:45.1]} 38... bxc6 {[%clk 0:00:39]} 39.
d5 {[%clk 0:00:37.1]} 39... cxd5 {[%clk 0:00:27.3]} 40. Bd7 {[%clk 0:00:35.9]}
40... Rhg8 {[%clk 0:00:15]} 41. Re2 {[%clk 0:00:32.6]} 41... d4 {[%clk
0:00:13.8]} 42. cxd4 {[%clk 0:00:29.6]} 42... Nb7 {[%clk 0:00:11.9]} 43. Be6+
{[%clk 0:00:26.3]} 1-0

[Event "*** Titled Tuesday Blitz"]
[Site "Chess.com"]
[Date "2021.03.02"]
[Round "5"]
[White "andrzej"]
[Black "Ekose"]
[Result "0-1"]
[WhiteElo "2346"]
[BlackElo "2534"]
[TimeControl "180+1"]
[EndTime "10:55:19 PST"]
[Termination "Ekose won by resignation"]

1. e4 {[%clk 0:02:59.8]} 1... e6 {[%clk 0:02:58.8]} 2. d4 {[%clk 0:02:59.6]}
2... d5 {[%clk 0:02:57.7]} 3. Bd3 {[%clk 0:03:00.2]} 3... dxe4 {[%clk
0:02:54.8]} 4. Bxe4 {[%clk 0:03:01.1]} 4... Nf6 {[%clk 0:02:54.9]} 5. Bf3 {[%clk
0:03:01.8]} 5... c5 {[%clk 0:02:54.3]} 6. Ne2 {[%clk 0:03:02.4]} 6... Nc6 {[%clk
0:02:54.2]} 7. Be3 {[%clk 0:02:59]} 7... e5 {[%clk 0:02:43.9]} 8. Bxc6+ {[%clk
0:02:43.4]} 8... bxc6 {[%clk 0:02:42.4]} 9. dxe5 {[%clk 0:02:24.4]} 9... Qxd1+
{[%clk 0:02:40.8]} 10. Kxd1 {[%clk 0:02:25.3]} 10... Ng4 {[%clk 0:02:40.2]} 11.
Nd2 {[%clk 0:02:00.1]} 11... Be6 {[%clk 0:01:39.3]} 12. Ne4 {[%clk 0:01:51.5]}
12... O-O-O+ {[%clk 0:01:33.7]} 13. Kc1 {[%clk 0:01:48.3]} 13... Nxe3 {[%clk
0:01:29.7]} 14. fxe3 {[%clk 0:01:49.2]} 14... h6 {[%clk 0:01:25.5]} 15. a4
{[%clk 0:01:38.5]} 15... Rd5 {[%clk 0:01:23.8]} 16. Nd6+ {[%clk 0:01:15.2]}
16... Bxd6 {[%clk 0:01:20.9]} 17. exd6 {[%clk 0:01:16.1]} 17... Rxd6 {[%clk
0:01:19.8]} 18. Ra3 {[%clk 0:01:10.2]} 18... Rhd8 {[%clk 0:01:16.2]} 19. Rc3
{[%clk 0:01:07.9]} 19... Bg4 {[%clk 0:01:02.2]} 20. Nd4 {[%clk 0:00:53.2]} 20...
cxd4 {[%clk 0:01:00.8]} 21. exd4 {[%clk 0:00:54.1]} 21... Kc7 {[%clk 0:00:56.1]}
22. Rf1 {[%clk 0:00:45.6]} 22... f6 {[%clk 0:00:50.1]} 23. h3 {[%clk 0:00:40.8]}
23... Bh5 {[%clk 0:00:43.8]} 24. g4 {[%clk 0:00:39.7]} 24... Bf7 {[%clk
0:00:43.1]} 25. b3 {[%clk 0:00:33.2]} 25... Rxd4 {[%clk 0:00:42.5]} 26. Kb2
{[%clk 0:00:33.9]} 26... Rd2 {[%clk 0:00:41.2]} 27. Rf5 {[%clk 0:00:32.4]} 27...
R8d5 {[%clk 0:00:39.4]} 28. Rf4 {[%clk 0:00:29.2]} 28... Kd6 {[%clk 0:00:37.3]}
29. Rfc4 {[%clk 0:00:28.6]} 29... c5 {[%clk 0:00:36.1]} 30. b4 {[%clk
0:00:22.5]} 30... cxb4 {[%clk 0:00:34.9]} 31. Rc6+ {[%clk 0:00:22.7]} 31... Ke5
{[%clk 0:00:34.9]} 32. Re3+ {[%clk 0:00:21.9]} 32... Kf4 {[%clk 0:00:34.7]} 33.
Re7 {[%clk 0:00:21.4]} 33... Rd7 {[%clk 0:00:33.3]} 34. Re1 {[%clk 0:00:18]}
34... b3 {[%clk 0:00:31]} 35. Rc3 {[%clk 0:00:16.2]} 35... Rxc2+ {[%clk
0:00:29.5]} 36. Rxc2 {[%clk 0:00:15.7]} 36... bxc2 {[%clk 0:00:30.4]} 37. Kxc2
{[%clk 0:00:16.3]} 37... Kg3 {[%clk 0:00:29.3]} 38. Re3+ {[%clk 0:00:16.5]}
38... Kh4 {[%clk 0:00:29.2]} 39. Rc3 {[%clk 0:00:15.9]} 39... Rd4 {[%clk
0:00:28]} 40. a5 {[%clk 0:00:15]} 40... Rc4 {[%clk 0:00:27.8]} 41. Rxc4 {[%clk
0:00:14.8]} 41... Bxc4 {[%clk 0:00:28.7]} 42. Kc3 {[%clk 0:00:15.7]} 42... Bb5
{[%clk 0:00:28.8]} 0-1

[Event "*** Titled Tuesday Blitz"]
[Site "Chess.com"]
[Date "2021.03.02"]
[Round "5"]
[White "GelmanAlexander"]
[Black "Manukyan_Artak"]
[Result "1-0"]
[WhiteElo "2557"]
[BlackElo "2341"]
[TimeControl "180+1"]
[EndTime "10:55:20 PST"]
[Termination "GelmanAlexander won on time"]

1. d4 {[%clk 0:02:54.1]} 1... Nf6 {[%clk 0:02:57.2]} 2. Nc3 {[%clk 0:02:48.8]}
2... d5 {[%clk 0:02:56.7]} 3. Bf4 {[%clk 0:02:48.4]} 3... Bf5 {[%clk 0:02:52.5]}
4. f3 {[%clk 0:02:48.3]} 4... e6 {[%clk 0:02:50.3]} 5. g4 {[%clk 0:02:48.4]}
5... Bg6 {[%clk 0:02:49.9]} 6. h4 {[%clk 0:02:49.3]} 6... h5 {[%clk 0:02:49.7]}
7. g5 {[%clk 0:02:49.6]} 7... Nfd7 {[%clk 0:02:49.1]} 8. e4 {[%clk 0:02:50.5]}
8... Bb4 {[%clk 0:02:47.5]} 9. exd5 {[%clk 0:02:48.6]} 9... exd5 {[%clk
0:02:44]} 10. Qe2+ {[%clk 0:02:48.5]} 10... Qe7 {[%clk 0:02:34.7]} 11. Bxc7
{[%clk 0:02:30.1]} 11... Bxc2 {[%clk 0:02:15.3]} 12. Qxe7+ {[%clk 0:01:55.1]}
12... Kxe7 {[%clk 0:02:13.8]} 13. Rh2 {[%clk 0:01:25.5]} 13... Bf5 {[%clk
0:02:06.5]} 14. Re2+ {[%clk 0:01:25.6]} 14... Kf8 {[%clk 0:01:58.2]} 15. Kf2
{[%clk 0:01:14.6]} 15... Bxc3 {[%clk 0:01:44]} 16. bxc3 {[%clk 0:01:15.5]} 16...
Nc6 {[%clk 0:01:43.4]} 17. Bh3 {[%clk 0:01:03.4]} 17... Bxh3 {[%clk 0:01:37]}
18. Nxh3 {[%clk 0:01:04.3]} 18... Rc8 {[%clk 0:00:38.9]} 19. Bd6+ {[%clk
0:01:03.8]} 19... Kg8 {[%clk 0:00:38.9]} 20. Nf4 {[%clk 0:01:03.8]} 20... Nb6
{[%clk 0:00:38.1]} 21. a4 {[%clk 0:00:47.2]} 21... g6 {[%clk 0:00:26]} 22. Bc5
{[%clk 0:00:42.4]} 22... Kg7 {[%clk 0:00:17.4]} 23. Bxb6 {[%clk 0:00:42.1]}
23... axb6 {[%clk 0:00:18.3]} 24. Nxd5 {[%clk 0:00:42.7]} 24... Na5 {[%clk
0:00:16.8]} 25. Rc1 {[%clk 0:00:25.7]} 25... Nc4 {[%clk 0:00:15.7]} 26. Rb1
{[%clk 0:00:23.5]} 26... Rc6 {[%clk 0:00:13.4]} 27. Re7 {[%clk 0:00:21.6]} 27...
Ra8 {[%clk 0:00:11.6]} 28. Rb4 {[%clk 0:00:18.4]} 28... Ra7 {[%clk 0:00:09.2]}
29. Nc7 {[%clk 0:00:12.2]} 29... Nd6 {[%clk 0:00:06.6]} 30. Ne6+ {[%clk
0:00:08.5]} 30... Kg8 {[%clk 0:00:05.7]} 31. Nd8 {[%clk 0:00:05.9]} 31... Rxc3
{[%clk 0:00:02.3]} 32. Rxb6 {[%clk 0:00:05.8]} 1-0

[Event "*** Titled Tuesday Blitz"]
[Site "Chess.com"]
[Date "2021.03.02"]
[Round "5"]
[White "Thjop"]
[Black "Hongjin"]
[Result "1-0"]
[WhiteElo "2673"]
[BlackElo "2489"]
[TimeControl "180+1"]
[EndTime "10:55:23 PST"]
[Termination "Thjop won by resignation"]

1. e4 {[%clk 0:02:56.1]} 1... c5 {[%clk 0:02:59.2]} 2. Nf3 {[%clk 0:02:54.8]}
2... d6 {[%clk 0:02:59.3]} 3. g3 {[%clk 0:02:53.9]} 3... g6 {[%clk 0:02:58.3]}
4. Bg2 {[%clk 0:02:53.4]} 4... Bg7 {[%clk 0:02:59.2]} 5. O-O {[%clk 0:02:52.2]}
5... Nc6 {[%clk 0:02:59.8]} 6. d3 {[%clk 0:02:51.1]} 6... e5 {[%clk 0:02:58.6]}
7. Nc3 {[%clk 0:02:48.1]} 7... Nge7 {[%clk 0:02:58.8]} 8. a4 {[%clk 0:02:48.1]}
8... O-O {[%clk 0:02:58.8]} 9. Nd2 {[%clk 0:02:48.6]} 9... Be6 {[%clk
0:02:35.8]} 10. Nc4 {[%clk 0:02:47.3]} 10... d5 {[%clk 0:02:29.8]} 11. exd5
{[%clk 0:02:46.8]} 11... Nxd5 {[%clk 0:02:30.7]} 12. Ne4 {[%clk 0:02:44.9]}
12... b6 {[%clk 0:02:23.7]} 13. Ng5 {[%clk 0:02:42.7]} 13... Bf5 {[%clk
0:02:16]} 14. a5 {[%clk 0:02:19.1]} 14... b5 {[%clk 0:01:54.9]} 15. Ne3 {[%clk
0:02:10]} 15... Nxe3 {[%clk 0:01:51]} 16. Bxe3 {[%clk 0:02:10.9]} 16... Rc8
{[%clk 0:01:45.5]} 17. Ne4 {[%clk 0:02:02.5]} 17... Nd4 {[%clk 0:01:36.7]} 18.
c3 {[%clk 0:02:00.6]} 18... Ne6 {[%clk 0:01:35.3]} 19. a6 {[%clk 0:01:39.4]}
19... Qc7 {[%clk 0:01:27.7]} 20. Qb3 {[%clk 0:01:36.1]} 20... Rb8 {[%clk
0:01:17.2]} 21. Rfd1 {[%clk 0:01:31.1]} 21... Rfd8 {[%clk 0:01:14.2]} 22. h3
{[%clk 0:01:27.1]} 22... c4 {[%clk 0:00:56.9]} 23. dxc4 {[%clk 0:01:19.4]} 23...
Rxd1+ {[%clk 0:00:53.7]} 24. Rxd1 {[%clk 0:01:16]} 24... bxc4 {[%clk 0:00:54.1]}
25. Qa4 {[%clk 0:01:13.9]} 25... Nf8 {[%clk 0:00:27.4]} 26. Nd6 {[%clk
0:01:06.5]} 26... Be6 {[%clk 0:00:25.3]} 27. Nb5 {[%clk 0:00:54.8]} 27... Qe7
{[%clk 0:00:20.4]} 28. Nxa7 {[%clk 0:00:51]} 28... Bd7 {[%clk 0:00:19.7]} 29.
Qxc4 {[%clk 0:00:40.2]} 29... Rxb2 {[%clk 0:00:16.1]} 30. Nc6 {[%clk 0:00:37.5]}
30... Qa3 {[%clk 0:00:14.6]} 31. Bc5 {[%clk 0:00:28.7]} 31... Qa2 {[%clk
0:00:07.1]} 32. Qxa2 {[%clk 0:00:26]} 32... Rxa2 {[%clk 0:00:08]} 33. Nb4 {[%clk
0:00:16.1]} 33... Ra3 {[%clk 0:00:01.6]} 34. Bxf8 {[%clk 0:00:15.3]} 34... Bxf8
{[%clk 0:00:01.8]} 35. Rxd7 {[%clk 0:00:14.9]} 35... Bxb4 {[%clk 0:00:02.2]} 36.
cxb4 {[%clk 0:00:15.5]} 36... Rxa6 {[%clk 0:00:02.5]} 37. Bd5 {[%clk 0:00:15.6]}
37... Rf6 {[%clk 0:00:02.2]} 38. b5 {[%clk 0:00:15.3]} 38... Kg7 {[%clk
0:00:01.4]} 1-0

[Event "*** Titled Tuesday Blitz"]
[Site "Chess.com"]
[Date "2021.03.02"]
[Round "5"]
[White "mikolka1985"]
[Black "c_r_e_e_p_e_r"]
[Result "1-0"]
[WhiteElo "2639"]
[BlackElo "2421"]
[TimeControl "180+1"]
[EndTime "10:55:23 PST"]
[Termination "mikolka1985 won by resignation"]

1. d4 {[%clk 0:03:00.9]} 1... Nf6 {[%clk 0:02:59.5]} 2. c4 {[%clk 0:03:00.2]}
2... e6 {[%clk 0:02:59.7]} 3. Nf3 {[%clk 0:02:59.2]} 3... b6 {[%clk 0:02:59.9]}
4. g3 {[%clk 0:02:58.4]} 4... Ba6 {[%clk 0:03:00.2]} 5. Qa4 {[%clk 0:02:57]}
5... Bb7 {[%clk 0:02:59.1]} 6. Bg2 {[%clk 0:02:56.1]} 6... c5 {[%clk 0:02:59.7]}
7. dxc5 {[%clk 0:02:55.7]} 7... Bxc5 {[%clk 0:02:58.8]} 8. O-O {[%clk
0:02:55.5]} 8... O-O {[%clk 0:02:58.9]} 9. Nc3 {[%clk 0:02:54.5]} 9... Be7
{[%clk 0:02:57.8]} 10. Rd1 {[%clk 0:02:50.1]} 10... a6 {[%clk 0:02:56.6]} 11.
Bf4 {[%clk 0:02:46.7]} 11... d6 {[%clk 0:02:53.5]} 12. Ng5 {[%clk 0:02:33.9]}
12... Bxg2 {[%clk 0:02:51.6]} 13. Kxg2 {[%clk 0:02:33.4]} 13... Nh5 {[%clk
0:02:37]} 14. Nge4 {[%clk 0:01:48]} 14... Nxf4+ {[%clk 0:02:33.9]} 15. gxf4
{[%clk 0:01:47.5]} 15... Qc7 {[%clk 0:02:24.7]} 16. Rd3 {[%clk 0:01:44.3]} 16...
Nd7 {[%clk 0:02:20.4]} 17. Rd2 {[%clk 0:01:22.6]} 17... Qb7 {[%clk 0:02:11.5]}
18. Kg1 {[%clk 0:01:21]} 18... Nc5 {[%clk 0:02:02]} 19. Nxc5 {[%clk 0:01:19.7]}
19... bxc5 {[%clk 0:02:02.6]} 20. Rad1 {[%clk 0:01:18.9]} 20... Rfd8 {[%clk
0:01:55.1]} 21. Qb3 {[%clk 0:01:15.8]} 21... Qc6 {[%clk 0:01:52]} 22. Qc2 {[%clk
0:01:14.9]} 22... Rab8 {[%clk 0:01:40.2]} 23. b3 {[%clk 0:01:08.6]} 23... g6
{[%clk 0:01:30.8]} 24. Qe4 {[%clk 0:01:07.6]} 24... Qc7 {[%clk 0:01:27.6]} 25.
Qg2 {[%clk 0:01:06.8]} 25... f5 {[%clk 0:01:11.9]} 26. Kh1 {[%clk 0:01:06]}
26... Bf6 {[%clk 0:01:11.8]} 27. Nb1 {[%clk 0:01:02.5]} 27... a5 {[%clk
0:01:08.6]} 28. Na3 {[%clk 0:01:00.6]} 28... d5 {[%clk 0:00:47.6]} 29. cxd5
{[%clk 0:00:58.1]} 29... Qxf4 {[%clk 0:00:47.7]} 30. e3 {[%clk 0:00:52.8]} 30...
Qb4 {[%clk 0:00:43.9]} 31. Nc4 {[%clk 0:00:45.7]} 31... e5 {[%clk 0:00:21.6]}
32. e4 {[%clk 0:00:43.3]} 32... f4 {[%clk 0:00:16.7]} 33. Qg4 {[%clk 0:00:42.1]}
33... a4 {[%clk 0:00:10.8]} 34. Rd3 {[%clk 0:00:41.6]} 34... axb3 {[%clk
0:00:09.9]} 35. axb3 {[%clk 0:00:41.3]} 35... Kg7 {[%clk 0:00:07.4]} 36. d6
{[%clk 0:00:40.3]} 36... Ra8 {[%clk 0:00:04.3]} 37. d7 {[%clk 0:00:35]} 37...
Qb5 {[%clk 0:00:01.8]} 38. Qe6 {[%clk 0:00:33.3]} 38... Ra6 {[%clk 0:00:02.1]}
39. Nd6 {[%clk 0:00:25.6]} 39... Qc6 {[%clk 0:00:01.9]} 40. Ne8+ {[%clk
0:00:24.1]} 40... Rxe8 {[%clk 0:00:01.8]} 41. Qxc6 {[%clk 0:00:22.5]} 41... Rxc6
{[%clk 0:00:01.7]} 42. dxe8=Q {[%clk 0:00:22]} 1-0

[Event "*** Titled Tuesday Blitz"]
[Site "Chess.com"]
[Date "2021.03.02"]
[Round "5"]
[White "AliKa2810"]
[Black "MarcoRiehle"]
[Result "1-0"]
[WhiteElo "2563"]
[BlackElo "2669"]
[TimeControl "180+1"]
[EndTime "10:55:25 PST"]
[Termination "AliKa2810 won by resignation"]

1. Nf3 {[%clk 0:03:00.9]} 1... d5 {[%clk 0:02:53.2]} 2. g3 {[%clk 0:03:01.1]}
2... c5 {[%clk 0:02:52.3]} 3. Bg2 {[%clk 0:03:01.6]} 3... Nc6 {[%clk 0:02:52.7]}
4. d4 {[%clk 0:03:01.2]} 4... Nf6 {[%clk 0:02:52.6]} 5. O-O {[%clk 0:03:00.3]}
5... e6 {[%clk 0:02:53]} 6. c4 {[%clk 0:02:58.8]} 6... dxc4 {[%clk 0:02:53.3]}
7. dxc5 {[%clk 0:02:55.2]} 7... Qxd1 {[%clk 0:02:51.9]} 8. Rxd1 {[%clk
0:02:56.1]} 8... Bxc5 {[%clk 0:02:51.9]} 9. Nbd2 {[%clk 0:02:56.7]} 9... c3
{[%clk 0:02:52.1]} 10. bxc3 {[%clk 0:02:57.6]} 10... Bd7 {[%clk 0:02:52]} 11.
Nb3 {[%clk 0:02:56.7]} 11... Be7 {[%clk 0:02:51.3]} 12. c4 {[%clk 0:02:49.2]}
12... O-O {[%clk 0:02:48.8]} 13. Bb2 {[%clk 0:02:48.3]} 13... Rfd8 {[%clk
0:02:47.6]} 14. Nfd4 {[%clk 0:02:45.6]} 14... Rac8 {[%clk 0:02:44]} 15. Nb5
{[%clk 0:02:44]} 15... a6 {[%clk 0:02:42.9]} 16. Nd6 {[%clk 0:02:42.3]} 16...
Bxd6 {[%clk 0:02:42.5]} 17. Rxd6 {[%clk 0:02:43.2]} 17... Be8 {[%clk 0:02:35]}
18. Rad1 {[%clk 0:02:42.5]} 18... h6 {[%clk 0:02:00.7]} 19. h3 {[%clk
0:02:41.2]} 19... Rxd6 {[%clk 0:01:54.4]} 20. Rxd6 {[%clk 0:02:39.8]} 20... Rd8
{[%clk 0:01:49]} 21. Rxd8 {[%clk 0:02:38.4]} 21... Nxd8 {[%clk 0:01:49.9]} 22.
Nc5 {[%clk 0:01:52.9]} 22... b5 {[%clk 0:01:42.8]} 23. Nxa6 {[%clk 0:01:44]}
23... bxc4 {[%clk 0:01:42.4]} 24. Nb4 {[%clk 0:01:44.1]} 24... Kf8 {[%clk
0:01:24.3]} 25. e3 {[%clk 0:01:27.4]} 25... Ke7 {[%clk 0:01:19.6]} 26. a3 {[%clk
0:01:21]} 26... Kd6 {[%clk 0:01:09.6]} 27. Bf1 {[%clk 0:01:19.5]} 27... Bb5
{[%clk 0:01:08.8]} 28. f3 {[%clk 0:01:08.6]} 28... Nc6 {[%clk 0:00:58.7]} 29.
Nxc6 {[%clk 0:01:03.5]} 29... Kxc6 {[%clk 0:00:59.6]} 30. Kf2 {[%clk 0:01:02]}
30... Kb6 {[%clk 0:00:50.9]} 31. e4 {[%clk 0:01:01.3]} 31... Ka5 {[%clk
0:00:48.8]} 32. Be2 {[%clk 0:01:00.9]} 32... Nd7 {[%clk 0:00:41]} 33. Bxg7
{[%clk 0:00:58.6]} 33... Ka4 {[%clk 0:00:41.3]} 34. Bxh6 {[%clk 0:00:52.1]}
34... Kxa3 {[%clk 0:00:41.7]} 35. h4 {[%clk 0:00:46.5]} 35... Kb3 {[%clk
0:00:35.1]} 36. h5 {[%clk 0:00:46.1]} 36... Nf6 {[%clk 0:00:34.6]} 37. g4 {[%clk
0:00:45.8]} 37... Bc6 {[%clk 0:00:30.7]} 38. Bg5 {[%clk 0:00:42.8]} 38... Nh7
{[%clk 0:00:28.8]} 39. Be3 {[%clk 0:00:39.8]} 39... f6 {[%clk 0:00:25.8]} 40. e5
{[%clk 0:00:36.9]} 40... Bd5 {[%clk 0:00:18.7]} 41. exf6 {[%clk 0:00:36]} 41...
Nxf6 {[%clk 0:00:19.6]} 42. h6 {[%clk 0:00:36.3]} 42... c3 {[%clk 0:00:14.2]}
43. g5 {[%clk 0:00:35.5]} 43... Nh7 {[%clk 0:00:14.2]} 44. g6 {[%clk 0:00:34.9]}
44... Nf6 {[%clk 0:00:13.9]} 45. h7 {[%clk 0:00:34.8]} 45... c2 {[%clk
0:00:13.3]} 46. h8=Q {[%clk 0:00:34.3]} 46... Nd7 {[%clk 0:00:14.2]} 47. g7
{[%clk 0:00:30.3]} 47... e5 {[%clk 0:00:14.3]} 48. g8=Q {[%clk 0:00:29.4]} 48...
Bxg8 {[%clk 0:00:14.9]} 49. Qxg8+ {[%clk 0:00:30.3]} 49... Kc3 {[%clk
0:00:15.5]} 50. Qc8+ {[%clk 0:00:29.8]} 1-0